bitfinex/quotes_SOLUSD_20250204
["timestamp","ask_amount","ask_price","bid_price","bid_amount"]
[1738690617652,0.0001,213.45,213.44,32.47231055]
[1738690618243,0.0001,213.45,213.44,37.15741055]
[1738690619638,0.0001,213.45,213.44,36.90643055]
[1738690620145,18.55850202,213.54,213.47,20.0]
[1738690620546,23.24100202,213.56,213.48,18.55850202]
[1738690620767,18.55850202,213.54,213.47,20.0]
[1738690621069,18.55850202,213.56,213.47,20.0]
[1738690621376,18.55850202,213.56,213.48,18.55850202]
[1738690621871,18.55850202,213.52,213.44,23.24360202]
[1738690622045,18.55850202,213.5,213.42,23.24380202]
[1738690623754,23.24250202,213.5,213.42,23.24380202]
[1738690624764,18.55850202,213.48,213.4,23.24450202]
[1738690624991,18.55850202,213.48,213.4,18.55850202]
[1738690625169,4.684,213.5,213.37,7.8162]
[1738690625170,18.55850202,213.46,213.38,18.55850202]
[1738690625377,18.55850202,213.48,213.4,18.55850202]
[1738690625950,18.55850202,213.46,213.4,0.03]
[1738690626279,18.55850202,213.44,213.4,0.03]
[1738690626571,18.55850202,213.42,213.4,0.03]
[1738690626749,5.20183987,213.41,213.4,0.03]
[1738690627072,35.47484189,213.41,213.31,7.30526215]
[1738690627255,18.55850202,213.35,213.31,0.03]
[1738690627960,18.55850202,213.33,213.31,0.03]
[1738690629264,23.24600202,213.33,213.31,0.03]
[1738690629673,23.76204189,213.33,213.31,0.03]
[1738690631166,26.73710202,213.37,213.31,0.03]
[1738690631363,29.78570202,213.37,213.31,0.03]
[1738690631674,25.09900202,213.37,213.31,0.03]
[1738690631973,18.55850202,213.39,213.31,18.58850202]
[1738690632190,4.6858,213.41,213.35,18.55850202]
[1738690632191,18.55850202,213.41,213.35,18.55850202]
[1738690632358,18.55850202,213.44,213.36,18.55850202]
[1738690632558,18.55850202,213.46,213.38,18.55850202]
[1738690632767,18.55850202,213.44,213.36,18.55850202]
[1738690632966,4.6847,213.46,213.33,18.55850202]
[1738690632967,18.55850202,213.41,213.33,18.55850202]
[1738690633166,18.55850202,213.37,213.31,0.03]
[1738690633393,18.55850202,213.35,213.31,0.03]
[1738690633582,18.55850202,213.37,213.31,0.03]
[1738690634098,18.55850202,213.39,213.31,23.27650202]
[1738690634393,4.6851,213.44,213.36,18.55850202]
[1738690634394,18.55850202,213.44,213.36,18.55850202]
[1738690634597,18.55850202,213.46,213.38,18.55850202]
[1738690634814,18.55850202,213.5,213.42,18.55850202]
[1738690634994,18.55850202,213.52,213.44,18.55850202]
[1738690635356,18.55850202,213.48,213.42,18.55850202]
[1738690635584,18.55850202,213.48,213.4,18.55850202]
[1738690636876,0.51603987,213.52,213.41,20.0]
[1738690636877,18.55850202,213.44,213.41,20.0]
[1738690637102,18.55850202,213.46,213.41,20.0]
[1738690637310,23.24320202,213.46,213.41,20.0]
[1738690637677,18.55850202,213.46,213.41,20.0]
[1738690637985,18.55850202,213.46,213.4,0.12549]
[1738690638180,23.24330202,213.46,213.41,20.0]
[1738690638391,18.55850202,213.44,213.36,18.55850202]
[1738690638991,18.55850202,213.44,213.37,0.12549]
[1738690639184,18.55850202,213.42,213.37,20.0]
[1738690639390,18.55850202,213.42,213.34,36.78294055]
[1738690639606,18.55850202,213.42,213.4,0.03]
[1738690640987,23.24330202,213.46,213.4,0.03]
[1738690641191,18.62150202,213.48,213.4,18.58850202]
[1738690641504,0.063,213.48,213.44,18.55850202]
[1738690642091,0.063,213.48,213.43,0.12549]
[1738690642288,4.7473,213.48,213.42,38.55850202]
[1738690642486,18.55850202,213.46,213.42,20.0]
[1738690642881,18.55850202,213.46,213.4,0.03]
[1738690643092,23.24380202,213.44,213.4,0.03]
[1738690643601,18.55850202,213.42,213.4,0.03]
[1738690643775,23.24330202,213.46,213.4,0.03]
[1738690643980,18.62150202,213.48,213.4,18.71399202]
[1738690644490,23.30580202,213.48,213.4,18.71399202]
[1738690644685,18.55850202,213.46,213.41,20.0]
[1738690645200,23.24330202,213.46,213.41,20.0]
[1738690647607,23.24330202,213.46,213.4,0.03]
[1738690648881,0.063,213.48,213.46,0.25098]
[1738690649081,0.063,213.57,213.54,20.0]
[1738690649325,0.063,213.57,213.55,18.55850202]
[1738690649607,0.063,213.57,213.53,18.55850202]
[1738690649781,0.063,213.57,213.54,0.12549]
[1738690649983,0.063,213.57,213.56,20.0]
[1738690651416,0.063,213.57,213.48,4.6842]
[1738690651583,18.55850202,213.55,213.48,4.6842]
[1738690651914,18.55850202,213.53,213.48,4.6842]
[1738690652402,18.55850202,213.53,213.48,24.6842]
[1738690652593,18.55850202,213.53,213.48,4.6842]
[1738690652909,18.55850202,213.53,213.48,20.0]
[1738690653722,18.62150202,213.57,213.49,18.55850202]
[1738690653920,18.62150202,213.57,213.55,0.12549]
[1738690653921,0.063,213.57,213.55,0.12549]
[1738690654206,0.063,213.62,213.56,18.68399202]
[1738690654389,0.063,213.62,213.59,38.55850202]
[1738690654595,0.063,213.62,213.6,0.25098]
[1738690654791,0.063,213.62,213.61,18.80948202]
[1738690654988,0.063,213.62,213.61,23.49088202]
[1738690656090,0.063,213.62,213.61,37.15371055]
[1738690656690,0.063,213.62,213.61,48.64423323]
[1738690658419,0.063,213.62,213.54,1.0]
[1738690658420,0.063,213.62,213.59,30.0490247]
[1738690658719,0.063,213.62,213.57,30.0490247]
[1738690658915,0.063,213.62,213.6,20.0]
[1738690659112,0.063,213.62,213.55,30.0490247]
[1738690659421,0.063,213.66,213.53,4.6831]
[1738690659722,30.0490247,213.65,213.58,0.12549]
[1738690660211,0.063,213.66,213.59,34.7308247]
[1738690662426,30.0490247,213.65,213.59,4.6818]
[1738690662803,30.0490247,213.65,213.58,0.12549]
[1738690662804,34.7295247,213.65,213.57,50.1745147]
[1738690663003,30.0490247,213.61,213.54,4.6829]
[1738690663431,30.0490247,213.63,213.55,30.1745147]
[1738690664025,30.0490247,213.65,213.57,30.1745147]
[1738690664600,34.7295247,213.65,213.57,30.1745147]
[1738690664934,30.0490247,213.63,213.57,30.0490247]
[1738690665402,30.0490247,213.63,213.51,25.12084853]
[1738690665403,30.0490247,213.63,213.58,20.0]
[1738690667220,34.7925247,213.65,213.58,20.0]
[1738690667605,34.7925247,213.65,213.57,34.7312247]
[1738690668012,30.0490247,213.63,213.58,20.0]
[1738690669534,30.0490247,213.63,213.58,24.682]
[1738690669743,0.063,213.65,213.59,30.0490247]
[1738690670903,0.063,213.65,213.61,30.0490247]
[1738690671220,0.063,213.65,213.63,30.0490247]
[1738690672313,0.063,213.65,213.63,34.7298247]
[1738690672701,0.063,213.65,213.64,0.12549]
[1738690672912,0.0001,213.66,213.65,13.91380853]
[1738690673111,0.063,213.72,213.71,0.12549]
[1738690673321,0.063,213.72,213.71,30.1745147]
[1738690674358,0.063,213.72,213.71,34.8537147]
[1738690675064,0.063,213.72,213.69,54.7285247]
[1738690675235,0.063,213.72,213.67,34.7289247]
[1738690675438,0.063,213.72,213.7,20.0]
[1738690676847,0.063,213.72,213.67,30.0490247]
[1738690677053,0.063,213.72,213.68,20.0]
[1738690677259,0.063,213.72,213.65,30.0490247]
[1738690677635,30.0490247,213.71,213.63,30.0490247]
[1738690677853,30.0490247,213.71,213.63,34.7299247]
[1738690678673,18.49346381,213.7,213.62,38.49346381]
[1738690678968,18.49346381,213.68,213.6,23.30055381]
[1738690679264,18.49346381,213.68,213.63,20.0]
[1738690679860,23.17336381,213.68,213.63,20.0]
[1738690680766,18.49346381,213.66,213.58,18.52346381]
[1738690680966,18.49346381,213.62,213.58,0.03]
[1738690681446,18.49346381,213.64,213.58,0.03]
[1738690681645,18.49346381,213.66,213.58,23.20546381]
[1738690682170,18.49346381,213.62,213.58,0.03]
[1738690682365,18.49346381,213.6,213.58,0.03]
[1738690682841,18.49346381,213.66,213.58,4.83749]
[1738690683173,7.0717,213.72,213.63,18.49346381]
[1738690683174,18.49346381,213.7,213.63,18.49346381]
[1738690683350,18.55646381,213.72,213.64,0.12549]
[1738690683862,23.23556381,213.72,213.64,0.12549]
[1738690684170,23.23556381,213.72,213.63,18.49346381]
[1738690684382,18.49346381,213.68,213.62,20.0]
[1738690684873,18.49346381,213.68,213.59,23.17526381]
[1738690685368,18.49346381,213.68,213.6,0.12549]
[1738690686080,18.49346381,213.63,213.58,0.03]
[1738690686389,18.49346381,213.66,213.59,18.61895381]
[1738690687075,18.49346381,213.64,213.58,4.7119]
[1738690687251,18.49346381,213.64,213.6,20.0]
[1738690687579,4.6794,213.71,213.62,18.49346381]
[1738690687775,4.6794,213.71,213.61,20.0]
[1738690687776,4.6794,213.71,213.64,18.49346381]
[1738690687976,18.49346381,213.7,213.62,18.49346381]
[1738690688156,5.19543987,213.71,213.58,18.52346381]
[1738690688157,18.49346381,213.66,213.58,18.52346381]
[1738690689064,18.49346381,213.64,213.58,18.52346381]
[1738690689268,18.49346381,213.64,213.59,0.12549]
[1738690689662,23.17396381,213.66,213.59,0.12549]
[1738690690855,18.49346381,213.64,213.58,18.52346381]
[1738690691892,18.49346381,213.64,213.58,23.20536381]
[1738690692778,18.49346381,213.64,213.59,20.0]
[1738690692971,18.49346381,213.62,213.58,0.03]
[1738690693153,18.49346381,213.6,213.58,0.03]
[1738690693556,0.51603987,213.59,213.58,0.03]
[1738690693756,5.19783987,213.59,213.58,0.03]
[1738690694286,23.69130368,213.59,213.58,0.03]
[1738690695697,23.17526381,213.59,213.58,0.03]
[1738690698464,18.49346381,213.59,213.58,0.03]
[1738690698868,23.17526381,213.59,213.58,0.03]
[1738690699382,37.35413221,213.59,213.58,0.03]
[1738690699567,23.69130368,213.59,213.58,0.03]
[1738690700001,38.60511221,213.59,213.58,0.0001]
[1738690700173,13.66282853,213.55,213.48,0.03]
[1738690700380,18.49346381,213.49,213.48,0.03]
[1738690701361,23.17746381,213.49,213.48,0.03]
[1738690701784,36.84029234,213.49,213.42,7.27526215]
[1738690701967,18.49346381,213.43,213.42,7.27526215]
[1738690702887,18.49346381,213.43,213.4,0.03]
[1738690703092,18.49346381,213.41,213.4,0.03]
[1738690703291,23.17926381,213.41,213.4,0.03]
[1738690705075,18.49346381,213.42,213.4,0.03]
[1738690705274,18.49346381,213.46,213.4,0.03]
[1738690705472,0.51603987,213.5,213.4,0.03]
[1738690705473,18.49346381,213.48,213.4,18.52346381]
[1738690705676,18.49346381,213.47,213.4,18.52346381]
[1738690705988,18.49346381,213.47,213.4,0.03]
[1738690706688,18.49346381,213.43,213.4,0.03]
[1738690706900,18.49346381,213.41,213.4,0.03]
[1738690708979,19.00950368,213.41,213.4,0.03]
[1738690709174,51.16579602,213.41,213.4,0.03]
[1738690709376,55.85159602,213.41,213.4,0.03]
[1738690709576,51.16579602,213.41,213.4,0.03]
[1738690710123,18.49346381,213.41,213.4,0.03]
[1738690710675,18.49346381,213.42,213.4,0.03]
[1738690711097,18.49346381,213.41,213.4,0.03]
[1738690711280,18.49346381,213.42,213.4,0.03]
[1738690711491,18.49346381,213.48,213.4,0.03]
[1738690711694,18.49346381,213.48,213.42,4.6855]
[1738690713211,18.49346381,213.47,213.42,4.6855]
[1738690713512,18.49346381,213.48,213.42,4.6855]
[1738690714014,18.49346381,213.47,213.41,4.6858]
[1738690714191,18.49346381,213.49,213.41,23.17926381]
[1738690714394,18.49346381,213.49,213.42,18.49346381]
[1738690714694,18.49346381,213.49,213.41,43.17926381]
[1738690714898,1.0,213.5,213.41,4.6858]
[1738690715131,18.49346381,213.42,213.4,4.716]
[1738690715295,0.51603987,213.48,213.4,4.716]
[1738690715910,18.49346381,213.42,213.4,4.716]
[1738690716119,18.49346381,213.43,213.4,0.03]
[1738690716296,18.49346381,213.42,213.4,0.03]
[1738690716698,18.49346381,213.43,213.4,0.03]
[1738690716920,18.49346381,213.42,213.4,0.03]
[1738690717302,18.49346381,213.41,213.4,0.03]
[1738690718817,18.49346381,213.46,213.4,0.03]
[1738690718991,18.49346381,213.48,213.41,18.49346381]
[1738690719194,18.49346381,213.48,213.41,38.49346381]
[1738690719504,18.49346381,213.49,213.42,18.49346381]
[1738690721095,18.49346381,213.49,213.43,4.6853]
[1738690721820,18.49346381,213.5,213.43,4.6853]
[1738690722027,18.49346381,213.51,213.43,34.89216381]
[1738690722315,18.49346381,213.53,213.46,18.49346381]
[1738690722523,18.49346381,213.53,213.43,16.52419]
[1738690722524,18.49346381,213.55,213.48,18.49346381]
[1738690723589,0.51603987,213.58,213.49,4.684]
[1738690723794,18.49346381,213.57,213.5,18.49346381]
[1738690724410,0.063,213.55,213.5,18.49346381]
[1738690724610,0.063,213.55,213.49,34.88756381]
[1738690725197,0.063,213.55,213.49,16.3941]
[1738690728019,0.063,213.55,213.53,18.49346381]
[1738690729226,0.063,213.55,213.54,4.6829]
[1738690732107,18.49346381,213.6,213.54,4.6829]
[1738690732643,18.49346381,213.59,213.55,20.0]
[1738690732928,18.49346381,213.57,213.52,4.6834]
[1738690733322,18.49346381,213.57,213.53,20.0]
[1738690733633,18.49346381,213.58,213.53,20.0]
[1738690734413,18.49346381,213.58,213.52,24.6834]
[1738690735437,18.49346381,213.58,213.53,20.0]
[1738690736933,18.49346381,213.58,213.54,4.6829]
[1738690737124,0.063,213.58,213.54,4.6829]
[1738690737939,0.063,213.58,213.53,4.6831]
[1738690740120,0.063,213.58,213.55,18.49346381]
[1738690740324,0.063,213.58,213.53,34.88446381]
[1738690740637,0.063,213.58,213.53,16.391]
[1738690741020,18.55646381,213.58,213.53,4.6831]
[1738690741222,18.55646381,213.58,213.53,24.6831]
[1738690742430,0.063,213.58,213.54,18.49346381]
[1738690742624,0.063,213.58,213.55,18.49346381]
[1738690743450,0.063,213.58,213.53,54.88446381]
[1738690743638,0.063,213.58,213.53,36.391]
[1738690743824,0.063,213.58,213.53,54.88446381]
[1738690744334,0.063,213.58,213.53,36.391]
[1738690744862,18.49346381,213.54,213.49,4.684]
[1738690745037,18.49346381,213.52,213.49,4.684]
[1738690745344,18.49346381,213.57,213.49,23.17746381]
[1738690745547,0.063,213.58,213.52,20.0]
[1738690746116,0.063,213.58,213.53,0.12549]
[1738690746322,0.063,213.58,213.53,13.91380853]
[1738690746549,0.063,213.58,213.55,0.12549]
[1738690746727,0.063,213.58,213.55,18.61895381]
[1738690746928,0.063,213.58,213.56,18.49346381]
[1738690747542,0.063,213.58,213.55,18.61895381]
[1738690748641,0.063,213.58,213.56,4.6825]
[1738690751654,18.49346381,213.57,213.5,11.7091]
[1738690751861,0.063,213.58,213.5,16.3934]
[1738690751862,18.49346381,213.55,213.5,16.3934]
[1738690752168,0.063,213.58,213.54,0.12549]
[1738690752463,0.063,213.58,213.55,18.49346381]
[1738690752942,0.063,213.58,213.54,18.61895381]
[1738690753757,0.063,213.58,213.55,4.6827]
[1738690756355,0.063,213.58,213.54,11.7071]
[1738690756528,0.063,213.58,213.55,18.61895381]
[1738690756733,0.063,213.58,213.55,11.69172548]
[1738690758162,0.063,213.58,213.55,0.12549]
[1738690758454,0.063,213.58,213.56,4.6825]
[1738690764053,0.063,213.58,213.54,4.6829]
[1738690764255,11.56623548,213.56,213.51,11.7089]
[1738690764464,0.063,213.58,213.49,0.03]
[1738690764465,11.56623548,213.54,213.5,4.6838]
[1738690764952,11.56623548,213.52,213.49,4.714]
[1738690765261,1.5993,213.56,213.49,0.03]
[1738690765262,11.56623548,213.5,213.49,0.03]
[1738690767463,11.69172548,213.5,213.49,0.03]
[1738690767695,32.39420388,213.5,213.49,0.03]
[1738690768160,37.20349388,213.5,213.49,0.03]
[1738690769065,13.66282853,213.49,213.48,0.03]
[1738690769367,26.35455401,213.49,213.48,0.03]
[1738690770036,26.48004401,213.49,213.48,0.03]
[1738690770241,0.12549,213.46,213.4,0.03]
[1738690770442,11.56623548,213.41,213.4,0.03]
[1738690770642,18.54592622,213.41,213.4,0.03]
[1738690771750,0.51603987,213.43,213.4,0.03]
[1738690771751,18.54592622,213.43,213.4,0.03]
[1738690771963,18.54592622,213.42,213.4,0.03]
[1738690772272,18.54592622,213.41,213.4,0.03]
[1738690772851,50.75468097,213.41,213.4,0.03]
[1738690773069,0.12549,213.39,213.34,3.67]
[1738690773262,18.54592622,213.35,213.32,0.03]
[1738690773566,18.54592622,213.33,213.32,0.03]
[1738690775979,18.54592622,213.34,213.32,0.03]
[1738690776154,0.51603987,213.36,213.32,0.03]
[1738690776155,18.54592622,213.36,213.32,0.03]
[1738690776358,18.54592622,213.35,213.32,0.03]
[1738690776681,18.54592622,213.33,213.32,0.03]
[1738690777772,18.54592622,213.35,213.32,0.03]
[1738690777965,18.54592622,213.38,213.32,0.03]
[1738690778373,6.56613987,213.41,213.32,38.57592622]
[1738690778374,18.54592622,213.39,213.32,38.57592622]
[1738690778855,18.54592622,213.4,213.33,18.54592622]
[1738690779463,18.54592622,213.41,213.33,18.54592622]
[1738690779646,18.54592622,213.39,213.33,0.12549]
[1738690779974,18.54592622,213.4,213.34,4.6873]
[1738690781770,18.54592622,213.38,213.34,4.6873]
[1738690782661,18.54592622,213.38,213.33,4.6875]
[1738690784364,18.54592622,213.34,213.32,0.03]
[1738690784563,18.54592622,213.33,213.32,0.03]
[1738690785160,18.54592622,213.37,213.32,0.03]
[1738690785696,18.54592622,213.37,213.33,0.03]
[1738690785848,18.54592622,213.36,213.33,0.03]
[1738690786054,18.54592622,213.37,213.33,0.03]
[1738690788379,18.54592622,213.38,213.33,0.03]
[1738690789264,18.54592622,213.4,213.33,18.57592622]
[1738690790465,18.54592622,213.39,213.34,4.6873]
[1738690791577,18.60892622,213.41,213.33,23.26342622]
[1738690791879,18.60892622,213.41,213.33,34.98232622]
[1738690792482,18.54592622,213.4,213.33,16.4364]
[1738690792660,11.59141897,213.4,213.33,11.7489]
[1738690793769,11.59141897,213.39,213.33,11.7489]
[1738690795463,11.59141897,213.38,213.33,16.4364]
[1738690795859,11.59141897,213.39,213.33,16.4364]
[1738690797082,11.59141897,213.38,213.33,11.7489]
[1738690797402,11.59141897,213.39,213.33,11.7489]
[1738690800213,11.65441897,213.4,213.33,16.4364]
[1738690800691,11.59141897,213.35,213.33,4.7175]
[1738690800869,11.59141897,213.34,213.33,0.03]
[1738690801186,0.063,213.4,213.33,11.62141897]
[1738690801488,0.063,213.4,213.33,0.03]
[1738690801689,11.59141897,213.37,213.33,0.03]
[1738690802595,11.59141897,213.38,213.33,0.03]
[1738690802979,0.063,213.4,213.33,0.03]
[1738690802980,11.59141897,213.39,213.33,0.03]
[1738690803691,0.063,213.4,213.38,11.59141897]
[1738690803994,0.063,213.4,213.39,11.59141897]
[1738690804374,0.063,213.4,213.39,11.71690897]
[1738690804783,0.063,213.41,213.4,0.12549]
[1738690804974,0.063,213.41,213.4,11.84239897]
[1738690804975,0.0001,213.41,213.4,11.84239897]
[1738690805476,0.0001,213.41,213.4,41.78264647]
[1738690805683,0.0001,213.41,213.4,42.48525353]
[1738690805867,11.59141897,213.56,213.43,20.0]
[1738690806072,7.9569,213.58,213.52,11.59141897]
[1738690806073,0.063,213.58,213.52,11.59141897]
[1738690806493,11.59141897,213.57,213.5,11.59141897]
[1738690806793,11.65441897,213.58,213.5,11.59141897]
[1738690807000,11.65441897,213.58,213.51,4.6836]
[1738690807188,11.59141897,213.57,213.51,4.6836]
[1738690807387,11.65441897,213.58,213.51,4.6836]
[1738690807790,11.65441897,213.58,213.51,16.27501897]
[1738690808096,0.063,213.58,213.57,31.59141897]
[1738690809303,0.063,213.58,213.57,36.27371897]
[1738690809677,0.063,213.58,213.57,20.0]
[1738690810295,11.65441897,213.58,213.5,18.23561897]
[1738690810600,11.59141897,213.56,213.51,4.6836]
[1738690810813,0.063,213.58,213.49,4.684]
[1738690810814,11.59141897,213.53,213.49,4.684]
[1738690811095,11.59141897,213.54,213.49,24.684]
[1738690811296,11.59141897,213.57,213.5,0.12549]
[1738690811482,0.063,213.58,213.54,11.59141897]
[1738690811689,0.063,213.58,213.52,31.59141897]
[1738690812182,0.063,213.58,213.55,20.0]
[1738690812381,0.063,213.58,213.57,11.59141897]
[1738690812584,0.063,213.58,213.57,18.50476519]
[1738690812793,0.063,213.58,213.55,20.0]
[1738690812794,0.063,213.58,213.55,38.50476519]
[1738690812990,0.063,213.58,213.56,18.50476519]
[1738690813186,0.063,213.58,213.57,4.6823]
[1738690813890,0.063,213.58,213.57,23.18706519]
[1738690815006,0.063,213.58,213.57,4.6823]
[1738690815219,0.063,213.58,213.55,18.50476519]
[1738690815510,0.063,213.58,213.56,38.50476519]
[1738690816001,0.063,213.58,213.55,4.6827]
[1738690816499,0.063,213.58,213.54,18.50476519]
[1738690816703,0.063,213.58,213.54,23.18766519]
[1738690817795,0.063,213.58,213.45,18.50476519]
[1738690817796,18.50476519,213.55,213.45,18.50476519]
[1738690817988,18.50476519,213.55,213.41,18.50476519]
[1738690817989,18.50476519,213.49,213.41,18.50476519]
[1738690818183,18.50476519,213.49,213.39,29.82886519]
[1738690818383,18.50476519,213.47,213.37,39.38881685]
[1738690819000,18.50476519,213.45,213.37,39.38881685]
[1738690819507,18.50476519,213.45,213.37,37.75921685]
[1738690819714,18.50476519,213.43,213.37,14.56785166]
[1738690820016,18.50476519,213.39,213.37,14.56785166]
[1738690820688,18.50476519,213.39,213.35,20.0]
[1738690821114,18.50476519,213.41,213.36,20.0]
[1738690821408,18.50476519,213.41,213.38,0.03]
[1738690821611,18.50476519,213.39,213.38,0.03]
[1738690823194,23.70700506,213.39,213.38,0.03]
[1738690823710,37.36983359,213.39,213.38,0.03]
[1738690823916,37.49532359,213.39,213.38,0.03]
[1738690824217,38.62081359,213.39,213.38,0.03]
[1738690824612,0.25098,213.35,213.33,0.03]
[1738690824916,50.33641359,213.39,213.31,0.03]
[1738690824917,18.50476519,213.32,213.31,0.03]
[1738690825217,62.29997878,213.32,213.31,0.03]
[1738690825518,43.79521359,213.32,213.31,0.03]
[1738690826292,20.0,213.29,213.27,0.03]
[1738690826496,32.68363359,213.28,213.27,0.03]
[1738690826898,0.51603987,213.28,213.27,0.03]
[1738690828223,19.02080506,213.28,213.27,0.03]
[1738690828418,37.37223359,213.28,213.27,0.03]
[1738690828796,23.70940506,213.28,213.27,0.03]
[1738690829312,37.37223359,213.28,213.27,0.03]
[1738690829919,37.49772359,213.28,213.27,0.03]
[1738690830410,37.49772359,213.28,213.2,0.03]
[1738690830411,0.25098,213.27,213.2,0.03]
[1738690830721,18.75574519,213.27,213.2,0.03]
[1738690830895,33.41857372,213.27,213.2,0.03]
[1738690831095,18.50476519,213.23,213.2,0.03]
[1738690831324,32.80912359,213.23,213.2,0.03]
[1738690831530,33.78831853,213.21,213.2,0.03]
[1738690831735,21.51540853,213.2,213.19,0.0001]
[1738690832045,33.78831853,213.17,213.16,0.03]
[1738690832210,52.80912359,213.17,213.16,0.03]
[1738690832534,57.50012359,213.17,213.16,0.03]
[1738690832833,57.37463359,213.17,213.16,0.03]
[1738690833035,43.71180506,213.17,213.16,0.03]
[1738690833334,57.50012359,213.17,213.16,0.03]
[1738690834632,43.71180506,213.17,213.16,0.03]
[1738690834929,23.71180506,213.17,213.16,0.03]
[1738690835456,37.50012359,213.17,213.16,0.03]
[1738690840136,37.50012359,213.17,213.01,12.823]
[1738690840137,13.66282853,213.12,213.01,12.823]
[1738690840340,18.50476519,213.06,213.01,4.6944]
[1738690840718,18.50476519,213.06,212.98,18.53476519]
[1738690840920,18.50476519,213.05,212.99,4.82029]
[1738690841125,18.50476519,213.02,212.98,0.03]
[1738690841439,18.50476519,213.04,212.98,0.03]
[1738690842047,0.64152987,213.1,212.99,18.50476519]
[1738690842048,18.50476519,213.06,212.99,18.50476519]
[1738690842336,18.50476519,213.05,213.0,20.0]
[1738690842540,18.50476519,213.06,213.0,20.0]
[1738690843434,18.50476519,213.03,213.0,20.0]
[1738690843646,18.50476519,213.04,213.0,20.0]
[1738690843952,18.50476519,213.05,213.0,20.0]
[1738690844622,4.6933,213.07,213.0,20.0]
[1738690844623,18.50476519,213.07,213.0,18.50476519]
[1738690844825,18.50476519,213.08,213.0,18.50476519]
[1738690845454,18.50476519,213.11,213.03,18.50476519]
[1738690845755,18.50476519,213.12,213.05,18.50476519]
[1738690845915,18.50476519,213.18,213.03,18.50476519]
[1738690845916,18.50476519,213.11,213.03,18.50476519]
[1738690846121,18.50476519,213.09,213.04,20.0]
[1738690846316,18.50476519,213.09,213.01,23.19936519]
[1738690846550,18.50476519,213.05,213.01,4.6946]
[1738690847258,18.50476519,213.03,213.0,0.03]
[1738690847426,18.50476519,213.05,213.0,4.7248]
[1738690847825,18.50476519,213.06,213.01,20.0]
[1738690848539,18.50476519,213.06,213.0,4.7248]
[1738690849054,18.50476519,213.07,213.0,4.7248]
[1738690849247,18.50476519,213.08,213.0,23.22956519]
[1738690849834,18.50476519,213.08,213.01,18.50476519]
[1738690850154,18.50476519,213.08,213.0,4.7248]
[1738690850155,18.50476519,213.1,213.02,23.19906519]
[1738690850326,18.50476519,213.1,213.03,18.50476519]
[1738690850520,18.50476519,213.11,213.04,18.50476519]
[1738690850759,18.50476519,213.15,213.08,18.50476519]
[1738690851738,0.51603987,213.19,213.11,18.50476519]
[1738690851739,18.50476519,213.19,213.11,18.50476519]
[1738690852038,18.50476519,213.21,213.14,18.50476519]
[1738690852566,18.50476519,213.15,213.07,4.6931]
[1738690852732,18.50476519,213.12,213.04,23.19866519]
[1738690852934,18.50476519,213.11,213.04,23.19866519]
[1738690854262,18.50476519,213.1,213.04,4.6939]
[1738690854464,18.50476519,213.11,213.04,4.6939]
[1738690855432,18.50476519,213.15,213.07,18.50476519]
[1738690855631,18.50476519,213.14,213.06,38.50476519]
[1738690856150,18.50476519,213.07,213.0,0.03]
[1738690856356,18.50476519,213.05,213.0,0.03]
[1738690856741,23.19846519,213.05,213.0,0.03]
[1738690857556,18.50476519,213.04,213.0,0.03]
[1738690857851,18.50476519,213.06,213.0,0.03]
[1738690858056,4.6928,213.09,213.0,0.03]
[1738690858057,18.50476519,213.04,213.0,20.03]
[1738690859053,18.50476519,213.06,213.0,24.7246]
[1738690859230,18.50476519,213.07,213.0,4.7246]
[1738690860158,18.50476519,213.07,213.0,23.22936519]
[1738690862041,18.50476519,213.08,213.0,23.22936519]
[1738690862865,18.50476519,213.08,213.0,43.22936519]
[1738690863230,18.50476519,213.12,213.04,18.50476519]
[1738690863655,18.50476519,213.11,213.03,18.50476519]
[1738690864040,99.30476519,213.14,213.05,18.50476519]